fUSD/lending_fUSD_20251210
["ID","MTS","AMOUNT","RATE_DAILY","PERIOD"]
[398138869,1765398656047,-500.0,0.00041095,60]
[398138870,1765398656059,-172.92670001,0.00041095,60]
[398138871,1765398656069,-500.0,0.00041095,60]
[398138872,1765398656080,-500.0,0.00041095,60]
[398138873,1765398656091,-501.41811633,0.00041095,60]
[398138874,1765398656101,-500.0,0.00041095,60]
[398138875,1765398656111,-500.0,0.00041095,60]
[398138876,1765398656121,-500.0,0.00041095,60]
[398138877,1765398656132,-448.44,0.00041095,60]
[398138878,1765398656315,-500.0,0.00041095,60]
[398138879,1765398656330,-500.0,0.00041095,60]
[398138880,1765398656342,-500.0,0.00041095,60]
[398138881,1765398656352,-500.0,0.00041095,60]
[398138882,1765398656362,-500.0,0.00041095,14]
[398138883,1765398656372,-500.0,0.00041095,60]
[398138884,1765398656382,-500.0,0.00041095,60]
[398138885,1765398656392,-500.0,0.00041095,60]
[398138886,1765398656402,-151.0,0.00041095,120]
[398138887,1765398656412,-500.0,0.00041095,60]
[398138888,1765398656422,-500.0,0.00041095,60]
[398138889,1765398656432,-151.0,0.00041095,120]
[398138890,1765398656442,-500.0,0.00041095,60]
[398138891,1765398656452,-500.0,0.00041095,60]
[398138892,1765398656462,-151.0,0.00041095,120]
[398138893,1765398656476,-151.0,0.00041095,120]
[398138894,1765398656486,-500.0,0.00041095,60]
[398138895,1765398656496,-500.0,0.00041095,60]
[398138896,1765398656506,-500.0,0.00041095,60]
[398138897,1765398656515,-500.0,0.00041095,60]
[398138898,1765398656526,-500.0,0.00041095,60]
[398138899,1765398656536,-501.64260104,0.00041095,60]
[398138900,1765398656546,-500.0,0.00041095,60]
[398138901,1765398656555,-500.0,0.00041095,60]
[398138902,1765398656565,-151.0,0.00041095,120]
[398138903,1765398656574,-501.73245104,0.00041095,60]
[398138904,1765398656586,-500.0,0.00041095,60]
[398138905,1765398656596,-500.0,0.00041095,60]
[398138906,1765398656605,-500.0,0.00041095,60]
[398138907,1765398656615,-500.0,0.00041095,60]
[398138908,1765398656625,-500.0,0.00041095,60]
[398138909,1765398656635,-500.0,0.00041095,60]
[398138910,1765398656645,-500.0,0.00041095,60]
[398138911,1765398656655,-500.0,0.00041095,60]
[398138912,1765398656664,-500.0,0.00041095,60]
[398138913,1765398656674,-500.0,0.00041095,60]
[398138914,1765398656684,-500.0,0.00041095,60]
[398138915,1765398656694,-500.0,0.00041095,60]
[398138916,1765398656703,-500.0,0.00041095,60]
[398138917,1765398656713,-500.0,0.00041095,60]
[398138918,1765398656723,-500.0,0.00041095,60]
[398138919,1765398656732,-500.0,0.00041095,60]
[398138920,1765398656742,-500.0,0.00041095,60]
[398138921,1765398656752,-532.64085181,0.00041095,60]
[398138922,1765398656761,-500.0,0.00041095,60]
[398138923,1765398656771,-500.0,0.00041095,60]
[398138924,1765398656780,-500.0,0.00041095,60]
[398138925,1765398656790,-500.0,0.00041095,60]
[398138926,1765398656801,-500.0,0.00041095,60]
[398138927,1765398656811,-500.0,0.00041095,60]
[398138928,1765398656820,-500.0,0.00041095,60]
[398138929,1765398656830,-500.0,0.00041095,60]
[398138930,1765398656840,-500.0,0.00041095,60]
[398138931,1765398656850,-500.0,0.00041095,60]
[398138932,1765398656860,-500.0,0.00041095,60]
[398138933,1765398656870,-474.7,0.00041095,60]
[398138934,1765398656880,-500.0,0.00041095,60]
[398138935,1765398656890,-160.004843,0.00041095,120]
[398138936,1765398656900,-500.0,0.00041095,60]
[398138937,1765398656909,-500.0,0.00041095,60]
[398138938,1765398656919,-500.0,0.00041095,60]
[398138939,1765398656929,-500.0,0.00041095,60]
[398138940,1765398656939,-500.0,0.00041095,60]
[398138941,1765398656948,-500.0,0.00041095,60]
[398138942,1765398656958,-500.0,0.00041095,60]
[398138943,1765398656967,-221.878754,0.00041095,120]
[398138944,1765398656977,-500.0,0.00041095,60]
[398138945,1765398656986,-500.0,0.00041095,60]
[398138946,1765398656995,-500.0,0.00041095,60]
[398138947,1765398657006,-500.0,0.00041095,60]
[398138948,1765398657015,-566.8515027,0.00041095,60]
[398138949,1765398657025,-500.0,0.00041095,60]
[398138950,1765398657035,-547.02560961,0.00041095,60]
[398138951,1765398657045,-500.0,0.00041095,60]
[398138952,1765398657055,-500.0,0.00041095,60]
[398138953,1765398657065,-502.71192003,0.00041095,60]
[398138954,1765398657075,-500.0,0.00041095,60]
[398138955,1765398657085,-500.0,0.00041095,60]
[398138956,1765398657095,-500.0,0.00041095,60]
[398138957,1765398657104,-500.0,0.00041095,60]
[398138958,1765398657114,-500.0,0.00041095,60]
[398138959,1765398657123,-500.0,0.00041095,60]
[398138960,1765398657133,-500.86029588,0.00041095,60]
[398138961,1765398657146,-221.878754,0.00041095,120]
[398138962,1765398657155,-500.0,0.00041095,60]
[398138963,1765398657166,-500.55530492,0.00041095,60]
[398138964,1765398657176,-151.0,0.00041095,120]
[398138965,1765398657187,-500.0,0.00041095,60]
[398138966,1765398657197,-6741.1,0.00041095,30]
[398138967,1765398657206,-6741.1,0.00041095,30]
[398138968,1765398657216,-500.0,0.00041095,60]
[398138969,1765398657226,-4213.50349495,0.00041095,30]
[398138970,1765398657451,-343.73339,0.00041095,30]
[398138971,1765398657466,-2183.86311505,0.00041095,30]
[398138972,1765398657477,-527.96993703,0.00041095,60]
[398138973,1765398657488,-151.0,0.00041095,5]
[398138974,1765398657499,-221.878754,0.00041095,120]
[398138975,1765398657510,-1214.24850692,0.00041095,30]
[398138976,1765398659349,-4.39404466,0.00041095,30]
[398138977,1765398659440,-5522.45744842,0.00041095,30]
[398138978,1765398659449,-500.0,0.00041095,60]
[398138979,1765398659458,-6741.1,0.00041095,30]
[398138980,1765398659467,-500.0,0.00041095,60]
[398138981,1765398659477,-500.0,0.00041095,60]
[398138982,1765398659486,-6741.1,0.00041095,30]
[398138983,1765398659496,-502.946495,0.00041095,60]
[398138984,1765398659505,-500.0,0.00041095,60]
[398138985,1765398659514,-500.0,0.00041095,60]
[398138986,1765398659523,-151.0,0.00041095,5]
[398138987,1765398659532,-151.9392,0.00041095,120]
[398138988,1765398659545,-500.0,0.00041095,60]
[398138989,1765398659554,-221.878754,0.00041095,120]
[398138990,1765398659563,-500.0,0.00041095,60]
[398138991,1765398659573,-151.0,0.00041095,120]
[398138992,1765398659582,-500.0,0.00041095,60]
[398138993,1765398659594,-266.93962821,0.00041095,60]
[398138994,1765398659603,-151.0,0.00041095,120]
[398138995,1765398659613,-151.0,0.00041095,120]
[398138996,1765398659622,-500.0,0.00041095,60]
[398138997,1765398659632,-500.0,0.00041095,60]
[398138998,1765398659642,-500.0,0.00041095,60]
[398138999,1765398659651,-500.0,0.00041095,60]
[398139000,1765398659661,-500.0,0.00041095,60]
[398139001,1765398659671,-500.0,0.00041095,60]
[398139002,1765398659680,-500.0,0.00041095,60]
[398139003,1765398659690,-500.0,0.00041095,60]
[398139004,1765398659699,-502.48147822,0.00041095,60]
[398139005,1765398659708,-500.0,0.00041095,60]
[398139006,1765398659718,-500.0,0.00041095,60]
[398139007,1765398659727,-500.0,0.00041095,60]
[398139008,1765398659739,-151.0,0.00041095,120]
[398139009,1765398659749,-500.0,0.00041095,60]
[398139010,1765398659758,-500.0,0.00041095,60]
[398139011,1765398659767,-500.0,0.00041095,60]
[398139012,1765398659776,-500.0,0.00041095,60]
[398139013,1765398659785,-298.250311,0.00041095,120]
[398139014,1765398659795,-500.0,0.00041095,60]
[398139015,1765398659804,-500.0,0.00041095,60]
[398139016,1765398659813,-500.0,0.00041095,60]
[398139017,1765398659822,-500.0,0.00041095,60]
[398139018,1765398659832,-500.0,0.00041095,60]
[398139019,1765398659843,-500.0,0.00041095,60]
[398139020,1765398659853,-500.0,0.00041095,60]
[398139021,1765398659863,-500.0,0.00041095,60]
[398139022,1765398659873,-299.27443004,0.00041095,60]
[398139023,1765398659882,-198.53866788,0.00041095,60]
[398139024,1765398659892,-500.0,0.00041095,60]
[398139025,1765398659902,-500.0,0.00041095,60]
[398139026,1765398659912,-500.0,0.00041095,60]
[398139027,1765398659921,-508.39139857,0.00041095,60]
[398139028,1765398659931,-500.0,0.00041095,60]
[398139029,1765398659945,-500.0,0.00041095,60]
[398139030,1765398659955,-500.0,0.00041095,60]
[398139031,1765398659966,-500.0,0.00041095,60]
[398139032,1765398659977,-500.0,0.00041095,60]
[398139033,1765398659988,-500.0,0.00041095,60]
[398139034,1765398659999,-500.0,0.00041095,60]
[398139035,1765398660010,-500.0,0.00041095,60]
[398139036,1765398660021,-500.0,0.00041095,60]
[398139037,1765398660031,-500.0,0.00041095,60]
[398139038,1765398660043,-500.0,0.00041095,60]
[398139039,1765398660054,-500.0,0.00041095,60]
[398139040,1765398660067,-500.0,0.00041095,60]
[398139041,1765398660079,-500.0,0.00041095,60]
[398139042,1765398660095,-500.0,0.00041095,60]
[398139043,1765398660212,-500.0,0.00041095,60]
[398139044,1765398660223,-500.0,0.00041095,60]
[398139045,1765398660234,-500.0,0.00041095,60]
[398139046,1765398660244,-500.0,0.00041095,60]
[398139047,1765398660255,-500.0,0.00041095,60]
[398139048,1765398660267,-500.0,0.00041095,60]
[398139049,1765398660277,-500.0,0.00041095,60]
[398139050,1765398660288,-302.94741689,0.00041095,60]
[398139051,1765398660306,-197.05258311,0.00041095,60]
[398139052,1765398660316,-500.0,0.00041095,60]
[398139053,1765398660326,-552.72,0.00041096,2]
[398139054,1765398660337,-552.78,0.00041096,2]
[398139055,1765398660353,-552.78,0.00041096,2]
[398139056,1765398660363,-552.78,0.00041096,2]
[398139057,1765398660375,-1091.88741679,0.00041096,2]
[398139058,1765398660390,-1185.71258321,0.00041096,2]
[398139059,1765398660401,-178.08,0.00041096,2]
[398139060,1765398660413,-170.29,0.00041096,2]
[398139061,1765398660424,-552.78,0.00041096,2]
[398139062,1765398660434,-552.78,0.00041096,2]
[398139063,1765398660445,-170.29,0.00041096,2]
[398139064,1765398660455,-552.78,0.00041096,2]
[398139065,1765398660465,-552.78,0.00041096,2]
[398139066,1765398660476,-170.29,0.00041096,2]
[398139067,1765398660499,-552.78,0.00041096,2]
[398139068,1765398660512,-170.29,0.00041096,2]
[398139069,1765398660522,-170.29,0.00041096,2]
[398139070,1765398660533,-340.07,0.00041096,2]
[398139071,1765398660543,-552.21,0.00041096,2]
[398139072,1765398660553,-301.21,0.00041096,2]
[398139073,1765398660563,-210.53775196,0.00041114,2]
[398139074,1765398660574,-704.07,0.00041117,30]
[398139075,1765398660584,-965.0,0.00041188,2]
[398139076,1765398660598,-725.0,0.00041189,7]
[398139077,1765398660609,-965.0,0.00041196,2]
[398139078,1765398660619,-6272.20567186,0.00041243,15]
[398139079,1765398660630,-600.0,0.00041332,120]
[398139080,1765398660640,-210.53775196,0.00041333,3]
[398139081,1765398660650,-206.0,0.0004137,30]
[398139082,1765398660661,-725.0,0.00041373,120]
[398139083,1765398660671,-351.77,0.000414,2]
[398139084,1765398660682,-591.54575894,0.000414,30]
[398139085,1765398660692,-6272.20567186,0.00041401,15]
[398139086,1765398660705,-85587.70970035,0.00041401,120]
[398139087,1765398660715,-151.0,0.00041401,120]
[398139088,1765398660726,-221.878754,0.00041401,120]
[398139089,1765398660736,-221.878754,0.00041401,120]
[398139090,1765398660747,-151.0,0.00041401,120]
[398139091,1765398660757,-151.0,0.00041401,5]
[398139092,1765398660767,-221.878754,0.00041401,120]
[398139093,1765398660778,-151.0,0.00041401,5]
[398139094,1765398660788,-221.878754,0.00041401,120]
[398139095,1765398660799,-151.0,0.00041401,120]
[398139096,1765398660809,-151.0,0.00041401,120]
[398139097,1765398660819,-151.0,0.00041401,120]
[398139098,1765398660829,-24574.51041585,0.00041401,30]
[398139099,1765398660852,-910.0,0.00041401,30]
[398139100,1765398660875,-151.0,0.00041095,120]
[398139101,1765398660886,-49603.57177592,0.00041401,30]
[398139102,1765398660897,-500.0,0.00041429,60]
[398139103,1765398660908,-500.0,0.00041429,60]
[398139104,1765398660919,-500.0,0.00041429,60]
[398139105,1765398660930,-500.0,0.00041429,60]
[398139106,1765398660941,-500.0,0.00041429,60]
[398139107,1765398660951,-500.0,0.00041429,60]
[398139108,1765398660962,-6741.1,0.00041429,30]
[398139109,1765398660972,-1038.0,0.00041429,7]
[398139110,1765398660982,-967.5921649,0.00041429,7]
[398139111,1765398660992,-10000.0,0.0004143,2]
[398139112,1765398661002,-500.0,0.00041433,60]
[398139113,1765398661013,-500.0,0.00041433,60]
[398139114,1765398661023,-547.3,0.00041433,60]
[398139115,1765398661034,-500.0,0.00041433,60]
[398139116,1765398661044,-500.0,0.00041433,60]
[398139117,1765398661053,-500.0,0.00041433,60]
[398139118,1765398661063,-500.0,0.00041433,60]
[398139119,1765398661074,-500.0,0.00041433,60]
[398139120,1765398661093,-500.0,0.00041433,60]
[398139121,1765398661103,-500.0,0.00041433,60]
[398139122,1765398661113,-500.0,0.00041433,60]
[398139123,1765398661124,-500.0,0.00041433,60]
[398139124,1765398661135,-500.0,0.00041433,60]
[398139125,1765398661149,-500.0,0.00041433,60]
[398139126,1765398661159,-500.0,0.00041433,60]
[398139127,1765398661170,-500.0,0.00041433,60]
[398139128,1765398661180,-500.0,0.00041433,60]
[398139129,1765398661190,-500.0,0.00041433,60]
[398139130,1765398661200,-500.0,0.00041433,60]
[398139131,1765398661210,-500.0,0.00041433,60]
[398139132,1765398661222,-500.0,0.00041433,60]
[398139133,1765398661232,-500.0,0.00041433,60]
[398139134,1765398661242,-500.0,0.00041433,60]
[398139135,1765398661253,-500.0,0.00041433,60]
[398139136,1765398661263,-500.0,0.00041433,60]
[398139137,1765398661273,-1000.0,0.00041433,14]
[398139138,1765398661284,-500.0,0.00041433,60]
[398139139,1765398661295,-500.0,0.00041433,60]
[398139140,1765398661305,-500.0,0.00041433,60]
[398139141,1765398661315,-574.53,0.00041433,60]
[398139142,1765398661326,-500.0,0.00041433,60]
[398139143,1765398661337,-1000.0,0.00041499,120]
[398139144,1765398661355,-1000.0,0.000415,7]
[398139145,1765398661366,-1000.0,0.000415,7]
[398139146,1765398661377,-169.77055524,0.00041501,29]
[398139147,1765398661387,-349.41,0.00041529,60]
[398139148,1765398661398,-500.0,0.00041529,60]
[398139149,1765398661409,-500.0,0.00041529,60]
[398139150,1765398661420,-500.0,0.00041529,60]
[398139151,1765398661430,-500.0,0.00041529,60]
[398139152,1765398661441,-501.85817854,0.00041529,60]
[398139153,1765398661451,-500.0,0.00041529,60]
[398139154,1765398661465,-500.0,0.00041529,60]
[398139155,1765398661475,-500.0,0.00041529,60]
[398139156,1765398661486,-500.0,0.00041529,60]
[398139157,1765398661496,-537.78443575,0.00041529,60]
[398139158,1765398661507,-500.0,0.00041529,60]
[398139159,1765398661518,-500.0,0.00041529,60]
[398139160,1765398661529,-500.0,0.00041529,60]
[398139161,1765398661539,-500.0,0.00041529,60]
[398139162,1765398661549,-500.0,0.00041529,60]
[398139163,1765398661559,-500.0,0.00041529,60]
[398139164,1765398661568,-649.1,0.00041529,60]
[398139165,1765398661578,-151.0,0.00041529,120]
[398139166,1765398661588,-209.477693,0.00041529,120]
[398139167,1765398661602,-209.477693,0.00041529,120]
[398139168,1765398661612,-209.477693,0.00041529,120]
[398139169,1765398661622,-209.477693,0.00041529,120]
[398139170,1765398661633,-1931.38408,0.00041529,120]
[398139171,1765398661643,-151.0,0.00041529,120]
[398139172,1765398661656,-151.0,0.00041529,120]
[398139173,1765398661666,-212.1579,0.00041529,120]
[398139174,1765398661678,-1931.38408,0.00041529,120]
[398139175,1765398661687,-151.0,0.00041529,120]
[398139176,1765398661697,-1931.38408,0.00041529,120]
[398139177,1765398661707,-1931.38408,0.00041529,120]
[398139178,1765398661716,-151.0,0.00041529,120]
[398139179,1765398661726,-151.0,0.00041529,120]
[398139180,1765398661736,-151.0,0.00041529,120]
[398139181,1765398661746,-500.0,0.0004153,60]
[398139182,1765398661756,-500.0,0.0004153,60]
[398139183,1765398661766,-500.0,0.0004153,60]
[398139184,1765398661776,-500.0,0.0004153,60]
[398139185,1765398661785,-6741.1,0.0004153,30]
[398139186,1765398661795,-165.458579,0.00041531,60]
[398139187,1765398661805,-500.0,0.00041531,60]
[398139188,1765398661815,-500.0,0.00041531,60]
[398139189,1765398661826,-500.0,0.00041531,60]
[398139190,1765398661836,-500.0,0.00041531,60]
[398139191,1765398661855,-500.0,0.00041531,60]
[398139192,1765398661865,-500.22513203,0.00041531,60]
[398139193,1765398661876,-500.0,0.00041531,60]
[398139194,1765398661886,-500.0,0.00041531,60]
[398139195,1765398661896,-500.0,0.00041531,60]
[398139196,1765398661906,-500.0,0.00041531,60]
[398139197,1765398661916,-204.93839366,0.00041531,60]
[398139198,1765398661927,-500.0,0.00041531,60]
[398139199,1765398661938,-501.09751112,0.00041531,60]
[398139200,1765398661948,-500.0,0.00041531,60]
[398139201,1765398661958,-500.0,0.00041531,60]
[398139202,1765398661969,-500.0,0.00041531,60]
[398139203,1765398661979,-500.0,0.00041531,60]
[398139204,1765398661989,-500.0,0.00041531,60]
[398139205,1765398662000,-500.0,0.00041531,60]
[398139206,1765398662144,-500.0,0.00041531,60]
[398139207,1765398662155,-500.0,0.00041531,60]
[398139208,1765398662166,-500.0,0.00041531,60]
[398139209,1765398662176,-519.34417216,0.00041531,60]
[398139210,1765398662186,-500.0,0.00041531,60]
[398139211,1765398662196,-500.0,0.00041531,60]
[398139212,1765398662205,-551.92428119,0.00041531,60]
[398139213,1765398662215,-500.0,0.00041531,60]
[398139215,1765398662225,-642.24,0.00041531,60]
[398139216,1765398662236,-584.48,0.00041531,60]
[398139217,1765398662246,-356.06763273,0.00041531,60]
[398139218,1765398662256,-500.0,0.00041531,30]
[398139219,1765398662265,-500.0,0.00041531,60]
[398139220,1765398662275,-500.0,0.00041531,60]
[398139221,1765398662284,-500.59811111,0.00041531,60]
[398139222,1765398662294,-500.0,0.00041531,60]
[398139223,1765398662303,-500.0,0.00041531,60]
[398139224,1765398662313,-204.05,0.00041531,60]
[398139225,1765398662323,-500.0,0.00041531,60]
[398139226,1765398662333,-500.0,0.00041531,60]
[398139227,1765398662345,-500.0,0.00041531,60]
[398139228,1765398662355,-500.0,0.00041531,60]
[398139229,1765398662364,-500.0,0.00041531,60]
[398139230,1765398662374,-500.0,0.00041531,60]
[398139231,1765398662383,-500.0,0.00041531,60]
[398139232,1765398662405,-500.0,0.00041531,60]
[398139233,1765398662417,-500.0,0.00041531,60]
[398139234,1765398662428,-500.0,0.00041531,60]
[398139235,1765398662439,-500.0,0.00041531,60]
[398139236,1765398662450,-500.0,0.00041531,60]
[398139237,1765398662460,-500.0,0.00041531,60]
[398139238,1765398662471,-500.0,0.00041531,60]
[398139239,1765398662481,-500.0,0.00041531,60]
[398139240,1765398662492,-500.0,0.00041531,60]
[398139242,1765398662503,-500.0,0.00041531,60]
[398139243,1765398662513,-500.0,0.00041531,60]
[398139244,1765398662524,-500.0,0.00041531,60]
[398139245,1765398662534,-649.1,0.00041531,60]
[398139246,1765398662545,-649.1,0.00041531,60]
[398139247,1765398662556,-364.98964158,0.00041533,60]
[398139248,1765398662567,-500.0,0.00041533,60]
[398139249,1765398662577,-500.0,0.00041533,60]
[398139250,1765398662587,-500.0,0.00041533,60]
[398139251,1765398662602,-500.0,0.00041533,60]
[398139252,1765398662613,-500.0,0.00041533,60]
[398139253,1765398662624,-649.1,0.00041533,60]
[398139254,1765398662634,-500.0,0.00041537,60]
[398139255,1765398662644,-500.0,0.00041537,60]
[398139256,1765398662655,-500.0,0.00041537,60]
[398139257,1765398662666,-4028.01448625,0.00041552,2]
[398139258,1765398662676,-210.53775196,0.00041552,4]
[398139259,1765398662686,-331.19291966,0.00041555,2]
[398139260,1765398662695,-1000.0,0.00041556,14]
[398139261,1765398662706,-169.14841005,0.00041559,15]
[398139262,1765398662715,-175.9704289,0.00041559,28]
[398139263,1765398662726,-6272.20567186,0.00041559,15]
[398139264,1765398662736,-200.0,0.00041567,120]
[398139265,1765398662747,-169.77055524,0.00041572,30]
[398139266,1765398662758,-500.0,0.00041589,120]
[398139267,1765398662768,-200.0,0.000416,22]
[398139268,1765398662778,-500.0,0.00041609,2]
[398139269,1765398662787,-150.0,0.00041609,2]
[398139270,1765398662798,-500.0,0.00041609,2]
[398139271,1765398662809,-150.0,0.00041609,2]
[398139272,1765398662819,-500.0,0.00041609,2]
[398139273,1765398662828,-150.0,0.00041609,2]
[398139274,1765398662838,-150.0,0.00041609,2]
[398139275,1765398662851,-500.0,0.00041609,2]
[398139276,1765398662861,-166.39372239,0.00041609,2]
[398139277,1765398662871,-500.0,0.00041609,2]
[398139278,1765398662881,-1000.0,0.00041609,2]
[398139279,1765398662891,-202.60109989,0.00041609,2]
[398139280,1765398662901,-500.0,0.00041609,2]
[398139281,1765398662911,-150.0,0.00041609,2]
[398139282,1765398662921,-150.0,0.00041609,2]
[398139283,1765398662931,-500.0,0.00041609,2]
[398139284,1765398662941,-500.0,0.00041609,2]
[398139285,1765398662951,-500.0,0.00041609,2]
[398139286,1765398662960,-150.0,0.00041609,2]
[398139287,1765398662970,-500.0,0.00041609,2]
[398139288,1765398662980,-153.80697456,0.00041609,2]
[398139289,1765398662990,-150.0,0.00041609,2]
[398139290,1765398662999,-500.0,0.00041609,2]
[398139291,1765398663010,-426.0,0.00041609,2]
[398139292,1765398663019,-150.0,0.00041609,2]
[398139293,1765398663029,-150.0,0.00041609,2]
[398139294,1765398663039,-500.0,0.00041635,60]
[398139295,1765398663049,-500.0,0.00041635,60]
[398139296,1765398663059,-500.0,0.00041636,60]
[398139297,1765398663070,-500.0,0.00041636,60]
[398139298,1765398663080,-1000.0,0.00041637,120]
[398139299,1765398663091,-151.0,0.00041637,2]
[398139300,1765398663101,-500.0,0.00041637,60]
[398139301,1765398663111,-500.0,0.00041637,60]
[398139302,1765398663121,-649.1,0.00041637,60]
[398139303,1765398663132,-3672.6013001,0.00041638,2]
[398139304,1765398663142,-7948.9857157,0.00041638,2]
[398139305,1765398663154,-150.0,0.00041638,7]
[398139306,1765398663164,-500.0,0.00041638,60]
[398139307,1765398663174,-500.0,0.00041638,60]
[398139308,1765398663185,-500.0,0.00041638,60]
[398139309,1765398663194,-500.0,0.00041638,60]
[398139310,1765398663205,-500.0,0.00041638,60]
[398139311,1765398663214,-500.0,0.00041638,60]
[398139312,1765398663226,-500.0,0.00041638,60]
[398139313,1765398663236,-500.0,0.00041638,60]
[398139314,1765398663247,-214.33197069,0.00041638,60]
[398139315,1765398663257,-529.76,0.00041638,60]
[398139316,1765398663268,-500.0,0.00041638,60]
[398139317,1765398663278,-192.86,0.00041638,60]
[398139318,1765398663289,-500.0,0.00041638,60]
[398139319,1765398663298,-500.0,0.00041638,60]
[398139320,1765398663309,-500.0,0.00041638,60]
[398139321,1765398663319,-500.0,0.00041638,60]
[398139322,1765398663328,-265.3035788,0.00041638,60]
[398139323,1765398663338,-649.1,0.00041638,60]
[398139324,1765398663349,-649.1,0.00041638,60]
[398139325,1765398663359,-649.1,0.00041638,60]
[398139326,1765398663369,-649.1,0.00041638,60]
[398139327,1765398663378,-649.1,0.00041638,60]
[398139328,1765398663388,-649.1,0.00041638,60]
[398139329,1765398663397,-649.1,0.00041638,60]
[398139330,1765398663408,-649.1,0.00041638,60]
[398139331,1765398663419,-649.1,0.00041638,60]
[398139332,1765398663429,-649.1,0.00041638,60]
[398139333,1765398663439,-649.1,0.00041638,60]
[398139334,1765398663448,-649.1,0.00041638,60]
[398139335,1765398663460,-649.1,0.00041638,60]
[398139336,1765398663470,-649.1,0.00041638,60]
[398139337,1765398663480,-649.1,0.00041638,60]
[398139338,1765398663491,-649.1,0.00041638,60]
[398139339,1765398663501,-649.1,0.00041638,60]
[398139340,1765398663511,-649.15,0.00041638,60]
[398139341,1765398663521,-169.77055524,0.00041643,30]
[398139342,1765398663530,-500.0,0.00041643,120]
[398139343,1765398663540,-334.84039979,0.00041643,120]
[398139344,1765398663551,-206.0,0.00041644,30]
[398139345,1765398663561,-500.0,0.0004165,60]
[398139346,1765398663571,-6741.1,0.0004165,30]
[398139347,1765398663581,-500.0,0.00041651,60]
[398139348,1765398663591,-500.0,0.00041651,60]
[398139349,1765398663601,-500.0,0.00041651,60]
[398139350,1765398663611,-500.0,0.00041651,60]
[398139351,1765398663622,-500.0,0.00041651,60]
[398139352,1765398663631,-500.0,0.00041651,60]
[398139353,1765398663640,-500.0,0.00041651,60]
[398139354,1765398663651,-500.0,0.00041651,60]
[398139355,1765398663662,-500.0,0.00041651,60]
[398139356,1765398663672,-500.0,0.00041651,60]
[398139357,1765398663682,-500.0,0.00041651,60]
[398139358,1765398663691,-500.0,0.00041651,60]
[398139359,1765398663701,-541.45485248,0.00041651,60]
[398139360,1765398663712,-500.0,0.00041651,60]
[398139361,1765398663839,-500.0,0.00041651,60]
[398139362,1765398663850,-500.0,0.00041651,60]
[398139363,1765398663861,-500.0,0.00041651,60]
[398139364,1765398663872,-500.0,0.00041655,60]
[398139365,1765398663881,-500.0,0.00041655,60]
[398139366,1765398663891,-500.0,0.00041655,60]
[398139367,1765398663901,-341.90429622,0.00041655,60]
[398139368,1765398663911,-500.0,0.00041655,60]
[398139369,1765398663921,-500.0,0.00041655,60]
[398139370,1765398663932,-500.0,0.00041655,60]